Cogmind - Beta 16 @@@ ROGUE MODE // 2026.02.02 @ 22:25:52 Player: Redbrew Result: Destroyed by G-47 Trooper with Particle Gun Performance ------------- Evolutions (2) 1000 Regions Visited (4) 800 Robots Destroyed (34) 170 Value Destroyed (989) 989 Prototype IDs (0) 0 Alien Tech Used (0) 0 Bonus (0) 0 TOTAL SCORE: 2959 Bonus ------- None Cogmind --------- Core Integrity 0/550 Matter 280/300 Energy 19/100 System Corruption 0% Temperature Warning (336) Movement Core (200) Ox3 Location -8/Storage Parts ------- > --- POWER (1) -------- (None) > --- PROPULSION (5) --- VSS Leg VSS Leg VSS Leg > --- UTILITY (3) ------ Small Storage Unit Signal Interpreter Utility Shielding > --- WEAPON (2) ------- Small Laser Beam Rifle > --- INVENTORY (8) ---- Aluminum Leg VSS Leg VSS Leg VSS Leg Improved Heat Sink High-capacity Storage Unit Hardened Medium Armor Plating Improved Datajack Peak State ------------ > --- POWER ------------ (None) > --- PROPULSION ------- Aluminum Leg Aluminum Leg VSS Leg VSS Leg VSS Leg > --- UTILITY ---------- Small Storage Unit Signal Interpreter Utility Shielding > --- WEAPON ----------- Small Laser Beam Rifle > --- INVENTORY -------- Aluminum Leg VSS Leg VSS Leg VSS Leg Improved Heat Sink High-capacity Storage Unit Hardened Medium Armor Plating Improved Datajack [Rating: 19] Favorites ----------- Power Ion Engine Engine Ion Engine Power Core Light Nuclear Core Propulsion Armored Wheel Leg Aluminum Leg Wheel Armored Wheel Utility Signal Interpreter Storage Small Storage Unit Processor Signal Interpreter Protection Utility Shielding Weapon Medium Laser Energy Gun Medium Laser Ballistic Gun Light Assault Rifle Impact Weapon Mace Build | -11 -10 -9 -8 -8 ------- Run | Yrd Mat Mat Mat Sto Slots Evolved 4 | . . 2 2 . Power . | . . . . . Propulsion 3 | . . 2 1 . Utility 1 | . . . 1 . Weapon . | . . . . . Parts Attached 36 | 5 3 11 14 3 Power 4 | 1 . 2 1 . Engine 3 | 1 . 2 . . Core 1 | . . . 1 . Reactor . | . . . . . Propulsion 15 | 2 . 4 6 3 Treads . | . . . . . Leg 11 | 2 . . 6 3 Wheel 4 | . . 4 . . Hover . | . . . . . Flight . | . . . . . Utility 6 | 1 1 2 2 . Device . | . . . . . Storage 4 | 1 . 2 1 . Processor 1 | . 1 . . . Hackware . | . . . . . Protection 1 | . . . 1 . Artifact . | . . . . . Weapon 11 | 1 2 3 5 . Energy Gun 6 | . 2 2 2 . Energy Cannon . | . . . . . Ballistic Gun 3 | 1 . 1 1 . Ballistic Cannon . | . . . . . Launcher . | . . . . . Special Weapon . | . . . . . Impact Weapon 2 | . . . 2 . Slashing Weapon . | . . . . . Piercing Weapon . | . . . . . Special Melee Weapon . | . . . . . Unidentified Prototypes . | . . . . . Parts Lost 16 | . 1 1 12 2 Power 3 | . . 1 2 . Propulsion 9 | . . . 7 2 Utility 1 | . . . 1 . Weapon 3 | . 1 . 2 . Highest Loss Streak 6 | . 1 1 6 2 To Critical Strikes . | . . . . . Average Backups 4 | 3 5 5 3 7 Power . | . 1 . . . Propulsion . | 1 2 . . 3 Utility 1 | . . 2 1 3 Weapon 1 | 1 1 1 2 . Tool/Special . | . . . . . Unused Backups 13 | . 1 5 . 7 Power . | . . . . . Propulsion 5 | . . 2 . 3 Utility 6 | . 1 2 . 3 Weapon 1 | . . 1 . . Tool/Special 1 | . . . . 1 Average Slot Usage (%) 85 | . 94 97 69 84 Engine 7 | . 14 10 2 . Leg 14 | . 28 1 8 39 Wheel 17 | . . 41 13 . Storage 13 | . 14 10 15 9 Processor 10 | . 12 11 9 9 Protection 1 | . . . 1 9 Energy Gun 14 | . 19 18 6 18 Ballistic Gun 2 | . 4 3 1 . Impact Weapon 3 | . . . 9 . Peak Build Rating 19 | 5 7 15 16 19 Average Rating 10 | 3 6 13 10 17 On Entrance 7 | . 5 7 14 10 Avg Prop Armor Cover (%) 14 | . . . 16 14 Naked Turns . | . . . . . Heaviest Build 49 | 11 14 49 18 10 Greatest Support 56 | 20 20 48 48 56 Greatest Overweight (x) 4 | . . 1 4 . Average Overweight (x) . | . . . . . Largest Inventory Capacity 20 | 8 8 20 8 8 Average Capacity 7 | 6 8 5 7 8 Most Carried 8 | 5 8 8 8 8 Average Carried 4 | 4 5 5 3 7 Final Capacity 8 | 8 8 5 8 8 Final Carried 8 | 5 8 5 4 8 Class Distribution -------------------- 78% | Mutant 21% | Scavenger-Mutant Dominant Class ---------------- Mutant | -10/Materials Mutant | -9/Materials Mutant | -8/Materials Scavenger-Mutant | -8/Storage Resources | -11 -10 -9 -8 -8 ----------- Run | Yrd Mat Mat Mat Sto Matter Collected 896 | 231 67 279 319 . Remotely . | . . . . . Salvage Created 1152 | . 231 339 525 57 Parts 52 | . 11 18 22 1 Haulers Intercepted . | . . . . . Recyclers Shooed 1 | . . 1 . . Parts Field Recycled . | . . . . . Retrieved Matter . | . . . . . Parts Self-Destructed . | . . . . . Prevented . | . . . . . Parts Restored . | . . . . . Kills | -11 -10 -9 -8 -8 ------- Run | Yrd Mat Mat Mat Sto Combat Hostiles Destroyed 33 | . 7 8 17 1 Melee 4 | . . . 4 . Guns 20 | . 6 8 5 1 Classes Destroyed 5 | . 2 3 . . Recycler 1 | . . 1 . . Swarmer 14 | . 3 4 7 . Grunt 14 | . 4 2 7 1 Duelist 1 | . . 1 . . Sentry 4 | . . 1 3 . Best Kill Streak 4 | . 3 4 4 1 Combat Bots Only 5 | . 3 4 5 1 Max Kills in Single Turn 2 | . 2 2 1 1 Gunslinging 1 | . 1 . . . Exploded . | . . . . . Melee 1 | . . . 1 . Uniques/NPCs Destroyed . | . . . . . Combat | -11 -10 -9 -8 -8 -------- Run | Yrd Mat Mat Mat Sto Hostile Shots Fired 305 | . 38 48 181 38 Missed 76 | . 8 13 47 8 Hits 229 | . 30 35 134 30 Melee 3 | . . 3 . . Projectile 226 | . 30 32 134 30 Critical Strikes 7 | . . . 4 3 Damage Taken 2840 | . 374 403 1569 494 Core 754 | . 126 66 455 107 Absorbed by Shields . | . . . . . Redirected to Shielding 10 | . . . . 10 Core Remaining (%) 77 | 100 49 83 . . Volleys Fired 91 | . 29 24 26 12 Largest 2 | . 2 2 2 2 Hottest 105 | . 100 100 105 96 Shots Fired 153 | . 42 48 39 24 Gun 153 | . 42 48 39 24 Cannon . | . . . . . Launcher . | . . . . . Special . | . . . . . Kinetic 63 | . 23 23 17 . Thermal 90 | . 19 25 22 24 Explosive . | . . . . . Electromagnetic . | . . . . . Robot Hit Streak 9 | . 9 9 5 7 Robot Miss Streak 3 | . 3 3 3 2 Penetration Max . | . . . . . Secondary Targets 2 | . 1 1 . . Max Gunslinging Chain 1 | . 1 1 . . Shots Hit Robots 134 | . 31 31 55 17 Core Hits 49 | . 13 13 18 5 Critical Kills 1 | . . . 1 . Critical Parts Destroyed 5 | . . . 5 . Critical Strikes 8 | . 2 . 6 . Burn 2 | . 2 . . . Smash 6 | . . . 6 . Melee Attacks 53 | . . . 53 . Impact 53 | . . . 53 . Slashing . | . . . . . Piercing . | . . . . . Sneak Attacks . | . . . . . Combat Hostiles . | . . . . . Follow-up Attacks 7 | . . . 7 . Damage Inflicted 2300 | . 311 470 1304 215 Guns 1384 | . 311 470 388 215 Cannons . | . . . . . Explosions . | . . . . . Melee 916 | . . . 916 . Ramming . | . . . . . Kinetic 609 | . 137 270 202 . Thermal 775 | . 174 200 186 215 Explosive . | . . . . . Electromagnetic . | . . . . . Impact 916 | . . . 916 . Slashing . | . . . . . Piercing . | . . . . . Highest Corruption . | . . . . . Average Corruption . | . . . . . Corruption Purged . | . . . . . Corruption Blocked . | . . . . . Overload Shots . | . . . . . Overflow Damage 255 | . . . 255 . Projectiles . | . . . . . Explosions . | . . . . . Melee 255 | . . . 255 . Knockbacks 6 | . . . 6 . Impact 6 | . . . 6 . Kinetic . | . . . . . Secondary . | . . . . . Self-Inflicted Damage . | . . . . . Shots . | . . . . . Rammed . | . . . . . Targets Rammed . | . . . . . Kicked . | . . . . . Crushed . | . . . . . Highest Temperature 318 | . 241 99 90 318 Average Temperature 65 | . 81 33 33 142 Received Heat Transfer 1200 | . 192 63 621 324 Siege Activations . | . . . . . Martial Activations . | . . . . . Shielding Activations . | . . . . . Robots Disrupted . | . . . . . Combat Hostiles . | . . . . . Robots Corrupted 8 | . . . 8 . Combat Hostiles 8 | . . . 8 . Parts Fried 2 | . . . 2 . Impact Corruptions 13 | . . . 13 . Robots Melted 1 | . 1 . . . Combat Hostiles 1 | . 1 . . . Parts Melted 3 | . 1 . . 2 Heat Transferred 2142 | . 666 592 375 509 Parts Sabotaged . | . . . . . Parts Stolen . | . . . . . Parts Stripped . | . . . . . Power Chain Reactions . | . . . . . Alert | -11 -10 -9 -8 -8 ------- Run | Yrd Mat Mat Mat Sto Maximum Alert Level . | . . . . . Low Security (%) 100 | 100 100 100 100 100 Level 1 . | . . . . . Level 2 . | . . . . . Level 3 . | . . . . . Level 4 . | . . . . . Level 5 . | . . . . . High Security . | . . . . . Max Security . | . . . . . Peak Influence 186 | . 100 145 186 59 Initial 59 | . . . 46 59 Average 73 | . 36 52 132 28 Influence Increases 892 | . 160 225 477 30 Destroy 0b10 Robot/C 660 | . 140 160 340 20 Destroy 0b10 Robot/NC 5 | . . 5 . . Destroy Leader 140 | . 20 30 80 10 Successful Hack 12 | . . . 12 . Disable Machine 30 | . . 15 15 . Lose Combat Pursuer 45 | . . 15 30 . Influence Decreases 882 | . 160 114 447 161 Entered New Map 147 | . . . 65 82 Time Decay 585 | . 150 104 262 69 Lost Part 150 | . 10 10 120 10 Squads Dispatched 8 | . 1 1 5 1 Investigation 2 | . 1 . 1 . Extermination . | . . . . . Reinforcement 3 | . . 1 1 1 Assault . | . . . . . Garrison 3 | . . . 3 . Intercept . | . . . . . Searches Triggered . | . . . . . Construction Impeded . | . . . . . Haulers Reinforced . | . . . . . Active Scanning Responses . | . . . . . Cargo Convoy Interrupts . | . . . . . Stealth | -11 -10 -9 -8 -8 --------- Run | Yrd Mat Mat Mat Sto Distress Signals 3 | . . 1 2 . Communications Jammed . | . . . . . Distress Signals . | . . . . . Times Spotted 50 | . 7 12 26 5 Peak Tracking Total 7 | . 4 5 7 4 Tactical Retreats 2 | . . 1 1 . Traps | -11 -10 -9 -8 -8 ------- Run | Yrd Mat Mat Mat Sto Traps Triggered . | . . . . . Indirectly . | . . . . . Trap Hack Attempts . | . . . . . Triggered . | . . . . . Disarmed . | . . . . . Reprogrammed . | . . . . . Reused . | . . . . . Traps Extracted . | . . . . . Installed . | . . . . . Triggered . | . . . . . Machines | -11 -10 -9 -8 -8 ---------- Run | Yrd Mat Mat Mat Sto Machines Disabled 2 | . . 1 1 . Max in Single Turn 1 | . . 1 1 . Machines Repaired . | . . . . . Machines Dismantled . | . . . . . Machines Sabotaged . | . . . . . Overloaded Fab Kills . | . . . . . Hacking | -11 -10 -9 -8 -8 --------- Run | Yrd Mat Mat Mat Sto Machines Accessed 8 | . 2 3 3 . Terminals 4 | . 1 2 1 . Fabricators . | . . . . . Repair Stations 1 | . . . 1 . Recycling Units 2 | . 1 1 . . Scanalyzers 1 | . . . 1 . Garrison Access . | . . . . . Total Hacks 20 | . 3 11 6 . Successful 10 | . 2 6 2 . Failed 10 | . 1 5 4 . Catastrophic . | . . . . . Database Lockouts . | . . . . . Manual 1 | . 1 . . . Terminals 9 | . 2 6 1 . Fabricators . | . . . . . Repair Stations 2 | . . . 2 . Recycling Units 6 | . 1 5 . . Scanalyzers 3 | . . . 3 . Garrison Access . | . . . . . Terminal Hacks 4 | . 2 2 . . Record 3 | . 2 1 . . Alert Level 1 | . . 1 . . Fabricator Hacks . | . . . . . Repair Station Hacks . | . . . . . Recycling Unit Hacks 4 | . . 4 . . Recycle Component 1 | . . 1 . . Process 1 | . . 1 . . Report Inventory 1 | . . 1 . . Retrieve Matter 1 | . . 1 . . Scanalyzer 2 | . . . 2 . Insert Component 1 | . . . 1 . Analyze 1 | . . . 1 . Garrison Access Hacks . | . . . . . Unauthorized Hacks . | . . . . . Terminals . | . . . . . Fabricators . | . . . . . Repair Stations . | . . . . . Recycling Units . | . . . . . Scanalyzers . | . . . . . Garrison Access . | . . . . . Data Cores Recovered . | . . . . . Used . | . . . . . Hacking Detections 5 | . 2 2 1 . Full Trace Events 2 | . 1 . 1 . Feedback Events . | . . . . . Feedback Blocked . | . . . . . Robot Schematics Acquired . | . . . . . Robots Built . | . . . . . Authchips . | . . . . . Time . | . . . . . Total Robot Build Rating . | . . . . . Part Schematics Acquired 1 | . . . 1 . Parts Built . | . . . . . Authchips . | . . . . . Time . | . . . . . Total Part Build Rating . | . . . . . Part Studies Acquired . | . . . . . Parts Repaired . | . . . . . Time . | . . . . . Parts Recycled 1 | . . 1 . . Recycled Matter 18 | . . 18 . . Retrieved Matter 18 | . . 18 . . Retrieved Components . | . . . . . Parts Scanalyzed 1 | . . . 1 . Part Schematics Acquired 1 | . . . 1 . Parts Damaged . | . . . . . Bothacking | -11 -10 -9 -8 -8 ------------ Run | Yrd Mat Mat Mat Sto Used RIF Installer . | . . . . . Robots Hacked . | . . . . . Non-combat . | . . . . . Combat . | . . . . . Robot Hacks Applied . | . . . . . Relay Couplers Released . | . . . . . Fabnet Peak Effective % . | . . . . . Robots Rewired . | . . . . . Allies Hacked . | . . . . . Hacks Repelled . | . . . . . Allies | -11 -10 -9 -8 -8 -------- Run | Yrd Mat Mat Mat Sto Total Allies . | . . . . . Largest Group . | . . . . . Highest-Rated Group . | . . . . . Highest-Rated Ally . | . . . . . Total Orders . | . . . . . Ally Attacks . | . . . . . Total Damage . | . . . . . Kills . | . . . . . Allies Corrupted . | . . . . . Allies Melted . | . . . . . Intel | -11 -10 -9 -8 -8 ------- Run | Yrd Mat Mat Mat Sto Active Infowar (turns) . | . . . . . Robot Analysis Total . | . . . . . Derelict Logs Recovered . | . . . . . Drone Launches . | . . . . . Drone Recoveries . | . . . . . Exploration | -11 -10 -9 -8 -8 ------------- Run | Yrd Mat Mat Mat Sto Turns Passed 1583 | 64 349 447 573 150 Spaces Moved 956 | 48 184 348 289 87 Core 22 | 7 . . 15 . Treads . | . . . . . Legs 464 | 41 184 11 141 87 Wheels 470 | . . 337 133 . Hover . | . . . . . Flight . | . . . . . Fastest Speed 50 | 50 120 90 90 102 Average Speed 109 | 109 120 91 120 119 Slowest Speed 250 | 120 120 120 250 120 Overloaded Moves . | . . . . . Propulsion Burnouts . | . . . . . Robots Hopped . | . . . . . Potential Cave-ins . | . . . . . Cave-ins Triggered . | . . . . . Exploration Rate (%) 21 | 4 37 31 19 18 Regions Visited 4 Branch Regions 1 Pre-discovered Areas . | . . . . . Known Exits Taken 3 | . 1 1 1 . Unknown Exits Taken 1 | 1 . . . . Scrap Searched . | . . . . . Spaces Dug . | . . . . . Terrain Destroyed . | . . . . . Melee . | . . . . . Projectile . | . . . . . AOE . | . . . . . Terrain Rammed . | . . . . . Walls Destroyed . | . . . . . Machines Disabled . | . . . . . Actions | -11 -10 -9 -8 -8 --------- Run | Yrd Mat Mat Mat Sto Total 1282 | 57 276 436 403 110 Wait 96 | . 49 32 10 5 Move 952 | 47 183 347 288 87 Hop . | . . . . . Pick Up 30 | 5 9 8 5 3 Fast Attach 22 | 5 . 6 9 2 Attach 14 | . 3 2 9 . Detach 8 | . . 1 7 . Swap 7 | . . 4 2 1 Drop 21 | . 3 12 6 . Fire 91 | . 29 24 26 12 Melee 41 | . . . 41 . Ram . | . . . . . Kick . | . . . . . Crush . | . . . . . Escape Stasis . | . . . . . Rewire . | . . . . . Trap . | . . . . . Miscellaneous . | . . . . . Route ------- -11/Scrapyard -10/Materials -9/Materials -8/Materials -8/Storage History --------- Turn | Location | Event 20 | -11/Scrapyard | Discovered new exit (range 15) 65 | -11/Scrapyard | Entered Materials 180 | -10/Materials | Core integrity fell below 50% 308 | -10/Materials | Build established: Mutant 410 | -10/Materials | Discovered new exit (range 3) 413 | -10/Materials | Identified exit to Materials 414 | -10/Materials | Entered another Materials area 414 | -9/Materials | Evolved 2 slots: Propulsion x2 846 | -9/Materials | Discovered new exit (range 16) 860 | -9/Materials | Identified exit to Materials 861 | -9/Materials | Entered another Materials area 861 | -8/Materials | Evolved 2 slots: Propulsion x1, Utility x1 904 | -8/Materials | Garrison activated, responded to threat 1105 | -8/Materials | Lost 4 parts (2p2n) 1262 | -8/Materials | Discovered new exit (range 13) 1307 | -8/Materials | Core integrity fell below 50% 1328 | -8/Materials | Core integrity fell below 20% 1347 | -8/Materials | Lost 6 parts (3n1u2w) 1433 | -8/Materials | Identified exit to Storage 1434 | -8/Materials | Entered Storage 1584 | -8/Storage | Destroyed by G-47 Trooper with Particle Gun Last Messages --------------- LOCATION=STORAGE GOAL=ESCAPE 01446_ O-16 Technician: "IFF HANDSHAKE FAILED. SECURING TERMINAL." 01451_ Acquired VSS Leg. 01484_ ALERT: Hostiles spotted, dispatching reinforcements to Terminal S012. 01558_ Critical hit (Burn: +37). 01566_ G-50 Soldier overheating. 01567_ G-50 Soldier heat short circuits Carbon-fiber Leg. 01567_ Aluminum Leg destroyed. 01569_ G-50 Soldier heat damages core (-12). 01569_ Adv. Heat Sink melted. 01569_ Broken Carbon-fiber Leg melted. 01569_ G-50 Soldier destroyed. 01573_ Critical hit (Burn: +37). 01576_ Aluminum Leg destroyed. 01580_ R-06 Scavenger collects Hvy. Laser. 01580_ R-06 Scavenger destroyed. Map ----- +----------------------------------------------------+ | | | ?????????????????????????????????????????????????? | | ?????????????????????????????????????????????????? | | ?????????????????????????????????????????????????? | | ?????????????????????????????????????????????????? | | ?????????????????????????????????????????????????? | | ?????????????????????????????????????????????????? | | ?????????????????????????????????????????????????? | | ?????????????????????????????????????????????????? | | ?????????????????????????????????????????????????? | | ?????????????????????????????????????????????????? | | ###??????????????????????????????????????????????? | | #??????????????????????????????????????????????? | | #??????????????????????????????????????????????? | | #??######?????????? ???????????????????????????? | | #### #?????????? ???????????????????????????? | | ##T# #?????????? ???????????????????????????? | | + " #?????????? ???????????????????????????? | | # ==#?????????? ??????????????????????????? | | # " ==#???########/??????????????????????????? | | # #!!==#???? ??????????????????????????? | | #########?????? ??????????????????????????? | | #??????????????? ! !??????????????????????????? | | #????????????????? ??????????????????????????? | | #?????????????????##+#####?????????????????????? | | #?????????????????# %g[@ #?????????????????????? | | #????????????# + gg%= #?????????????????????? | | #????????????###### m = #?????????????????????? | | #?????????????????# #?????????????????????? | | #?????????????????# #?????????????????????? | | #?????????????????# +?#???????????????????? | | #?????????????????####+### #???????????????????? | | ##################### #???????????????????? | | # + #???????????????????? | | # """ ######## #???????????????????? | | # "????" #??????# ### ????????????? | | # "????" #??????# #?# ######????????????? | | + "????" #??????# #?# #?????????????????? | | # "?"""" #??????# #?# #?????????????????? | | # """ #??????#+#?#+##### #?????????????????? | | # #????????????????? #?????????????????? | | ###########?????????????????? ?????????????????? | | ????????????????????????????? ????????????????? | | ????????????????????????????? #???????????????? | | T ??????????????????????????????????????????????? | | ??????????????????????????????????????????????? | | ??????????????????????????????????????????????? | | ###??????????????????????????????????????????????? | | ?????????????????????????????????????????????????? | | ?????????????????????????????????????????????????? | +----------------------------------------------------+ Best States ------------- Heat Dissipation 31 Energy Generation 14 Energy Capacity 250 Matter Stores 500 Matter Capacity 500 Sight Range 16 Terrain Scan Density 10 Utility Shielding 33 Evasion (%) 55 Item Schematics ----------------- Sml. Laser | -8/Materials | Scanalyzed Robot Schematics ------------------ None Fabricated ------------ Nothing Repaired ---------- Nothing Studied --------- None Alien Tech Used ----------------- None Achievements -------------- Overwhelming There's More Where That Came From Challenges ------------ None Game ------ Seed NodeHeartAutobeam Manual? 0 Play Time 00:42:16 Cumulative 16.8 hours Start 2026.02.02 @ 21:38:53 End 2026.02.02 @ 22:25:52 Sessions 1 Manual Loads 0 Difficulty Rogue Special Mode None Game No. 14 Rogue 14 Adventurer 0 Explorer 0 Win Type - Total 0 Types 0/0/0/0/0/0/0/0/0/0 Lore% 11 Gallery% 17 Achievement% 10 Wizard Run 0 Options --------- Layout 1 ASCII 0 Keyboard 1 Movement Numpad Keybinds 0 Fullscreen 1 Font 24/Smallcaps Map View 50x35 Zoom Use 0% Tactical HUD 1 Map Filters NONE Filters NONE Steam 1 RUN: 070a66b0-b837-4453-9d86-6a16f0813750